bitfinex/quotes_SOLUSD_20260311
["timestamp","ask_amount","ask_price","bid_price","bid_amount"]
[1773235904299,7.48625199,86.49,86.45,7.48625199]
[1773235904504,7.48625199,86.5,86.46,7.48625199]
[1773235904699,7.48625199,86.5,86.461,3.10937039]
[1773235905588,7.48625199,86.49,86.448,3.11766595]
[1773235905897,3.09240601,86.49,86.46,7.48625199]
[1773235906100,10.578658,86.5,86.46,7.48625199]
[1773235906306,7.48625199,86.5,86.46,7.48625199]
[1773235906603,3.09240601,86.497,86.461,11.56590832]
[1773235906813,10.578658,86.49,86.461,11.56590832]
[1773235906988,10.578658,86.49,86.45,7.48625199]
[1773235906989,3.09240601,86.497,86.45,7.48625199]
[1773235907308,7.48625199,86.49,86.451,3.13404597]
[1773235907982,3.09240601,86.528,86.481,3.14205377]
[1773235908186,3.09240601,86.539,86.5,7.48625199]
[1773235908387,3.09240601,86.519,86.48,19.04961924]
[1773235908692,3.09240601,86.519,86.481,3.14205377]
[1773235908881,3.09240601,86.519,86.49,7.48625199]
[1773235909081,3.09240601,86.519,86.48,19.04961924]
[1773235909286,3.09240601,86.519,86.48,47.95803737]
[1773235909700,3.09240601,86.519,86.48,40.47178538]
[1773235909901,3.09240601,86.519,86.48,47.95803737]
[1773235910185,46.21236148,86.557,86.48,47.95803737]
[1773235910186,3.03473182,86.544,86.491,3.14455483]
[1773235910387,3.03473182,86.575,86.53,7.48625199]
[1773235910593,3.03473182,86.575,86.511,40.45728288]
[1773235910594,0.1,86.59,86.56,7.48625199]
[1773235910595,3.13473182,86.59,86.56,7.48625199]
[1773235911110,3.13473182,86.59,86.57,7.48625199]
[1773235911415,0.1,86.59,86.56,7.48625199]
[1773235911603,3.03473182,86.589,86.55,7.48625199]
[1773235911802,0.1,86.59,86.56,7.48625199]
[1773235912120,0.1,86.59,86.561,3.14455483]
[1773235912315,3.03473182,86.681,86.6,7.48625199]
[1773235912644,3.03473182,86.681,86.59,7.48625199]
[1773235912645,7.48625199,86.65,86.604,11.54681077]
[1773235912805,3.03473182,86.649,86.6,7.48625199]
[1773235912989,10.52098381,86.66,86.63,7.48625199]
[1773235913186,3.03473182,86.659,86.611,3.14455483]
[1773235913387,3.03473182,86.673,86.623,3.14455483]
[1773235913592,7.48625199,86.65,86.61,10.63080682]
[1773235913811,40.37886916,86.679,86.595,2.9]
[1773235913812,7.48625199,86.63,86.595,2.9]
[1773235913992,3.03473182,86.639,86.6,7.48625199]
[1773235914187,3.03473182,86.652,86.61,7.48625199]
[1773235914412,86.5261482,86.679,86.6,7.48625199]
[1773235914413,14.57701118,86.638,86.6,7.48625199]
[1773235914597,3.03473182,86.638,86.6,7.48625199]
[1773235914917,0.14216157,86.661,86.6,7.48625199]
[1773235914918,3.03473182,86.666,86.63,7.48625199]
[1773235915112,14.57328211,86.666,86.62,10.63080682]
[1773235915299,3.03473182,86.659,86.62,7.48625199]
[1773235915492,46.13393,86.705,86.591,179.00243672]
[1773235915493,3.03473182,86.649,86.592,3.14455483]
[1773235915701,3.03473182,86.639,86.593,2.9]
[1773235915999,7.48625199,86.62,86.582,11.54974475]
[1773235916205,3.03473182,86.619,86.576,11.5505255]
[1773235916411,7.48625199,86.59,86.553,3.14455483]
[1773235916612,3.03473182,86.607,86.56,7.48625199]
[1773235916915,7.48625199,86.63,86.59,7.48625199]
[1773235917626,7.48625199,86.8,86.59,7.48625199]
[1773235917627,3.03473182,86.689,86.624,3.14455483]
[1773235917801,3.03473182,86.669,86.63,7.48625199]
[1773235918002,3.03473182,86.659,86.62,7.48625199]
[1773235918210,7.48625199,86.68,86.64,7.48625199]
[1773235918604,3.03473182,86.679,86.64,7.48625199]
[1773235918923,3.03473182,86.669,86.63,7.48625199]
[1773235919130,3.03473182,86.669,86.631,40.40124204]
[1773235919323,3.03473182,86.669,86.631,11.54321201]
[1773235919502,3.03473182,86.659,86.608,3.14455483]
[1773235919704,7.48625199,86.65,86.609,3.14455483]
[1773235919898,7.48625199,86.65,86.592,40.41943827]
[1773235919899,7.48625199,86.64,86.595,3.14455483]
[1773235920216,7.48625199,86.63,86.595,3.14455483]
[1773235920619,7.48625199,86.62,86.593,2.9]
[1773235920817,7.48625199,86.6,86.569,3.14455483]
[1773235921124,3.03473182,86.625,86.58,7.48625199]
[1773235921324,7.48625199,86.62,86.577,3.14455483]
[1773235921497,7.48625199,86.62,86.558,11.55286168]
[1773235921498,3.03473182,86.638,86.6,7.48625199]
[1773235921697,3.03473182,86.649,86.594,3.14455483]
[1773235921920,7.48625199,86.64,86.591,3.14455483]
[1773235922137,7.48625199,86.67,86.63,7.48625199]
[1773235922430,3.03473182,86.67,86.63,7.48625199]
[1773235922605,3.69383402,86.72,86.59,7.48625199]
[1773235922606,3.03473182,86.683,86.65,7.48625199]
[1773235922812,3.03473182,86.669,86.631,11.54321201]
[1773235923023,7.48625199,86.65,86.608,3.14455483]
[1773235923329,7.48625199,86.68,86.64,7.48625199]
[1773235923532,3.03473182,86.669,86.611,3.14455483]
[1773235923702,7.48625199,86.65,86.613,3.14455483]
[1773235924121,3.03473182,86.657,86.62,7.48625199]
[1773235924443,3.03473182,86.657,86.63,7.48625199]
[1773235924726,3.03473182,86.669,86.617,6.83838885]
[1773235924925,3.03473182,86.659,86.62,7.48625199]
[1773235925139,3.03473182,86.696,86.65,10.63080682]
[1773235925430,3.03473182,86.709,86.67,7.48625199]
[1773235925635,3.03473182,86.709,86.66,2.88]
[1773235925800,3.03473182,86.722,86.7,7.48625199]
[1773235926005,3.03473182,86.722,86.69,7.48625199]
[1773235926208,2.53473182,86.722,86.673,3.14455483]
[1773235926406,2.53473182,86.722,86.68,7.48625199]
[1773235926608,11.53081567,86.725,86.69,7.48625199]
[1773235926829,11.530089,86.73,86.7,7.48625199]
[1773235927030,11.52790906,86.746,86.7,7.48625199]
[1773235927331,7.48625199,86.74,86.7,7.48625199]
[1773235927534,7.48625199,86.73,86.7,7.48625199]
[1773235927731,46.08103349,86.804,86.708,3.14455483]
[1773235928027,46.07886041,86.808,86.73,7.48625199]
[1773235928233,3.03473182,86.799,86.717,0.14216157]
[1773235928417,3.03473182,86.799,86.678,4.82477569]
[1773235928418,7.48625199,86.75,86.703,3.14455483]
[1773235928606,7.48625199,86.74,86.7,7.48625199]
[1773235928811,7.48625199,86.71,86.67,7.48625199]
[1773235929336,7.48625199,86.73,86.69,7.48625199]
[1773235929833,7.48625199,86.78,86.721,3.14455483]
[1773235930138,3.69383402,86.808,86.695,3.14455483]
[1773235930433,7.48625199,86.75,86.71,7.48625199]
[1773235930646,11.52631457,86.758,86.73,7.48625199]
[1773235930933,3.03473182,86.82,86.751,3.14455483]
[1773235931108,3.03473182,86.82,86.77,7.48625199]
[1773235931312,3.03473182,86.799,86.76,7.48625199]
[1773235931511,3.03473182,86.789,86.737,3.14455483]
[1773235931728,7.48625199,86.78,86.74,7.48625199]
[1773235931935,0.14216157,86.788,86.722,3.14455483]
[1773235931936,3.03473182,86.769,86.73,7.48625199]
[1773235932128,3.03473182,86.769,86.74,7.48625199]
[1773235932436,3.03473182,86.759,86.709,3.14455483]
[1773235932617,11.52485334,86.769,86.74,7.48625199]
[1773235932933,3.03473182,86.799,86.76,7.48625199]
[1773235933130,178.48917546,86.84,86.75,7.48625199]
[1773235933131,3.03473182,86.789,86.75,7.48625199]
[1773235933715,3.03473182,86.789,86.76,7.48625199]
[1773235933916,3.03473182,86.789,86.75,7.48625199]
[1773235934314,3.03473182,86.789,86.717,0.14216157]
[1773235934315,3.03473182,86.769,86.712,3.14455483]
[1773235934523,3.03473182,86.767,86.713,40.36303667]
[1773235934732,28.81113117,86.773,86.74,7.48625199]
[1773235934733,3.03473182,86.773,86.74,7.48625199]
[1773235934938,3.03473182,86.769,86.73,7.48625199]
[1773235935136,11.51942602,86.81,86.761,3.14455483]
[1773235935328,3.03473182,86.809,86.77,7.48625199]
[1773235936516,3.03473182,86.799,86.76,7.48625199]
[1773235936713,11.52100278,86.798,86.761,11.52591602]
[1773235936934,11.52100278,86.798,86.724,92.24656992]
[1773235936935,3.03473182,86.779,86.74,7.48625199]
[1773235937133,3.03473182,86.749,86.7,7.48625199]
[1773235937339,3.03473182,86.749,86.71,7.48625199]
[1773235937535,7.48625199,86.74,86.7,7.48625199]
[1773235937728,3.03473182,86.743,86.7,7.48625199]
[1773235938053,3.03473182,86.719,86.672,14.68230621]
[1773235938219,3.3,86.759,86.68,7.48625199]
[1773235938420,3.03473182,86.728,86.69,7.48625199]
[1773235938620,3.03473182,86.739,86.7,7.48625199]
[1773235938934,11.52976986,86.732,86.7,7.48625199]
[1773235939127,11.52976986,86.732,86.681,11.53655356]
[1773235939128,3.03473182,86.729,86.681,11.53655356]
[1773235939333,3.03473182,86.709,86.655,3.14455483]
[1773235939539,3.03473182,86.709,86.67,7.48625199]
[1773235939930,3.03473182,86.709,86.68,7.48625199]
[1773235940238,7.48625199,86.7,86.66,7.48625199]
[1773235940540,86.47327398,86.732,86.623,190.48058827]
[1773235940541,3.23489413,86.689,86.65,7.48625199]
[1773235940737,3.23489413,86.689,86.66,7.48625199]
[1773235940916,3.23489413,86.689,86.612,46.18259826]
[1773235940917,3.23489413,86.687,86.61,7.48625199]
[1773235941116,3.23489413,86.669,86.63,7.48625199]
[1773235941621,3.23489413,86.659,86.62,7.48625199]
[1773235942540,7.48625199,86.65,86.62,7.48625199]
[1773235942841,11.54227936,86.638,86.61,7.48625199]
[1773235943020,11.54227936,86.638,86.594,11.54814421]
[1773235943222,7.48625199,86.65,86.61,7.48625199]
[1773235943525,7.48625199,86.63,86.594,40.41850474]
[1773235943719,3.23489413,86.609,86.57,7.48625199]
[1773235943919,3.23489413,86.609,86.56,7.48625199]
[1773235944120,3.23489413,86.589,86.54,7.48625199]
[1773235944339,7.48625199,86.59,86.55,7.48625199]
[1773235944531,3.23489413,86.617,86.58,7.48625199]
[1773235944841,14.78103829,86.609,86.57,7.48625199]
[1773235945039,7.48625199,86.6,86.561,11.55241347]
[1773235945217,11.54528743,86.616,86.58,7.48625199]
[1773235945622,3.23489413,86.599,86.56,7.48625199]
[1773235945819,3.23489413,86.599,86.55,7.48625199]
[1773235945820,7.48625199,86.59,86.55,7.48625199]
[1773235946033,3.23489413,86.599,86.55,11.55401502]
[1773235946324,7.48625199,86.6,86.546,3.03600265]
[1773235946534,7.48625199,86.6,86.56,7.48625199]
[1773235947052,3.23489413,86.604,86.57,7.48625199]
[1773235947237,11.54507775,86.617,86.58,7.48625199]
[1773235947550,11.54507775,86.617,86.59,7.46866925]
[1773235947723,11.54347851,86.629,86.6,7.46866925]
[1773235947922,11.54347851,86.629,86.577,3.03600265]
[1773235948123,3.23489413,86.628,86.59,7.46866925]
[1773235948552,11.5425287,86.637,86.6,7.46866925]
[1773235948849,3.23489413,86.636,86.6,7.46866925]
[1773235949044,11.5425287,86.637,86.61,7.46866925]
[1773235949256,43.63345431,86.637,86.6,7.46866925]
[1773235949424,3.23489413,86.636,86.6,7.46866925]
[1773235949624,3.23489413,86.636,86.595,11.54793517]
[1773235949941,3.23489413,86.636,86.6,7.46866925]
[1773235950166,7.46866925,86.64,86.591,11.5485443]
[1773235950346,3.23489413,86.663,86.63,7.46866925]
[1773235950640,46.13298009,86.706,86.591,144.3568038]
[1773235950641,14.77051613,86.688,86.643,3.03600265]
[1773235950946,11.53828402,86.668,86.619,3.03600265]
[1773235951252,7.46866925,86.68,86.64,7.46866925]
[1773235951437,3.23489413,86.679,86.64,7.46866925]
[1773235951629,3.23489413,86.679,86.65,7.46866925]
[1773235952023,3.23489413,86.679,86.618,40.40730563]
[1773235952024,11.53578965,86.687,86.66,7.46866925]
[1773235952244,3.23489413,86.708,86.68,7.46866925]
[1773235952454,3.23489413,86.733,86.7,7.46866925]
[1773235953148,0.14216157,86.75,86.672,2.88]
[1773235953149,3.23489413,86.749,86.72,7.46866925]
[1773235953343,3.23489413,86.739,86.7,7.46866925]
[1773235953849,3.23489413,86.739,86.71,7.46866925]
[1773235954236,18.99606772,86.75,86.72,7.46866925]
[1773235954428,53.55207611,86.8,86.72,7.46866925]
[1773235954429,3.23489413,86.779,86.74,7.46866925]
[1773235954628,3.23489413,86.779,86.75,7.46866925]
[1773235954829,3.23489413,86.769,86.73,7.46866925]
[1773235955024,3.23489413,86.759,86.72,7.46866925]
[1773235955255,3.23489413,86.767,86.721,11.53123234]
[1773235955445,3.23489413,86.767,86.73,7.46866925]
[1773235955826,3.23489413,86.767,86.703,2.86]
[1773235955827,3.23489413,86.759,86.72,7.46866925]
[1773235956539,3.23489413,86.767,86.73,7.46866925]
[1773235956850,11.52498617,86.768,86.73,7.46866925]
[1773235957153,11.52498617,86.768,86.696,2.86]
[1773235957154,3.23489413,86.739,86.669,3.03600265]
[1773235957335,7.46866925,86.71,86.67,19.00657245]
[1773235957538,3.32,86.753,86.67,7.46866925]
[1773235957539,3.23489413,86.709,86.67,7.46866925]
[1773235957738,7.46866925,86.7,86.66,7.46866925]
[1773235957963,3.23489413,86.689,86.65,7.46866925]
[1773235958133,3.23489413,86.689,86.651,40.39191699]
[1773235958334,3.23489413,86.689,86.651,11.54054771]
[1773235958529,10.70356338,86.68,86.64,7.46866925]
[1773235958832,7.46866925,86.69,86.65,7.46866925]
[1773235959048,7.46866925,86.7,86.662,3.03600265]
[1773235959249,3.23489413,86.727,86.69,7.46866925]
[1773235959548,3.23489413,86.727,86.661,40.38725608]
[1773235959549,7.46866925,86.72,86.68,7.46866925]
[1773235959747,10.74016651,86.72,86.68,7.46866925]
[1773235959949,3.27149726,86.719,86.68,7.46866925]
[1773235960452,3.27149726,86.699,86.66,7.46866925]
[1773235961053,11.53429144,86.698,86.67,7.46866925]
[1773235961441,14.80380233,86.713,86.68,7.46866925]
[1773235961747,14.80380233,86.713,86.662,3.30010372]
[1773235961748,7.46866925,86.71,86.67,7.46866925]
[1773235961957,43.63454281,86.713,86.67,7.46866925]
[1773235962163,43.63454281,86.713,86.68,7.46866925]
[1773235962341,14.80380233,86.713,86.68,7.46866925]
[1773235962542,7.46866925,86.71,86.67,7.46866925]
[1773235962759,3.27149726,86.709,86.67,7.46866925]
[1773235962957,3.27149726,86.709,86.662,3.30010372]
[1773235963146,19.00003456,86.72,86.68,7.46866925]
[1773235963348,3.27149726,86.733,86.7,7.46866925]
[1773235963549,40.35447264,86.732,86.7,7.46866925]
[1773235964060,40.35447264,86.732,86.68,3.30010372]
[1773235964061,3.27149726,86.729,86.69,7.46866925]
[1773235964737,3.27149726,86.709,86.67,7.46866925]
[1773235964957,7.46866925,86.72,86.68,7.46866925]
[1773235965253,3.27149726,86.709,86.621,61.02282684]
[1773235965458,3.27149726,86.709,86.67,7.46866925]
[1773235965659,3.27149726,86.689,86.65,7.46866925]
[1773235965835,7.46866925,86.69,86.66,7.46866925]
[1773235966038,3.27149726,86.706,86.67,7.46866925]
[1773235966457,7.46866925,86.7,86.66,7.46866925]
[1773235966662,7.46866925,86.7,86.651,3.30010372]
[1773235966663,3.27149726,86.706,86.67,7.46866925]
[1773235966960,3.27149726,86.699,86.66,7.46866925]
[1773235967141,14.8057887,86.698,86.67,7.46866925]
[1773235967343,14.8057887,86.698,86.66,7.46866925]
[1773235967863,14.8057887,86.698,86.67,7.46866925]
[1773235968356,3.27149726,86.689,86.65,7.46866925]
[1773235969254,7.46866925,86.68,86.641,11.54179402]
[1773235969558,3.27149726,86.679,86.65,7.46866925]
[1773235970060,3.27149726,86.679,86.64,7.46866925]
[1773235970442,3.27149726,86.679,86.65,7.46866925]
[1773235970648,3.08097021,86.687,86.65,7.46866925]
[1773235971662,11.53455753,86.696,86.67,7.46866925]
[1773235971868,40.37095136,86.696,86.66,7.46866925]
[1773235972050,3.08097021,86.695,86.66,7.46866925]
[1773235972248,3.08097021,86.695,86.651,3.2529679]
[1773235972564,3.08097021,86.689,86.65,7.46866925]
[1773235973369,3.08097021,86.689,86.637,3.2529679]
[1773235973545,3.08097021,86.679,86.64,7.46866925]
[1773235973957,40.374677,86.688,86.65,7.46866925]
[1773235974172,3.08097021,86.669,86.63,7.46866925]
[1773235974470,98.052787,86.688,86.59,53.66331572]
[1773235974471,3.08097021,86.679,86.65,7.46866925]
[1773235974764,43.45564721,86.688,86.65,7.46866925]
[1773235974950,43.45564721,86.688,86.644,3.2529679]
[1773235975149,43.45564721,86.688,86.66,7.46866925]
[1773235975345,14.61659221,86.688,86.66,7.46866925]
[1773235975547,36.30387452,86.7,86.67,7.46866925]
[1773235975548,3.08097021,86.7,86.67,7.46866925]
[1773235975865,3.08097021,86.712,86.68,7.46866925]
[1773235976045,40.36396765,86.711,86.673,3.2529679]
[1773235976245,11.53256218,86.711,86.68,7.46866925]
[1773235976548,11.53256218,86.711,86.69,7.46866925]
[1773235976949,3.08097021,86.724,86.7,7.46866925]
[1773235977150,3.08097021,86.736,86.69,7.46866925]
[1773235977347,3.08097021,86.729,86.69,7.46866925]
[1773235977542,40.35605571,86.728,86.69,7.46866925]
[1773235977744,0.14216157,86.75,86.71,3.24324372]
[1773235977745,3.08097021,86.742,86.71,3.24324372]
[1773235977950,3.08097021,86.742,86.71,7.46866925]
[1773235978245,3.08097021,86.742,86.7,3.2529679]
[1773235978246,11.52857356,86.741,86.72,7.46866925]
[1773235978460,11.52857356,86.741,86.71,7.46866925]
[1773235978667,11.52857356,86.741,86.696,2.84]
[1773235978668,11.52737752,86.75,86.712,3.2529679]
[1773235978877,11.52737752,86.75,86.72,7.46866925]
[1773235979184,3.08097021,86.768,86.73,7.46866925]
[1773235979348,11.52525763,86.766,86.74,7.46866925]
[1773235979655,11.52525763,86.766,86.696,2.84]
[1773235979656,7.46866925,86.77,86.727,3.2529679]
[1773235979847,40.33373282,86.776,86.74,7.46866925]
[1773235980050,3.08097021,86.775,86.74,7.46866925]
[1773235980251,7.46866925,86.77,86.73,10.72163715]
[1773235980565,3.08097021,86.775,86.74,7.46866925]
[1773235980949,7.46866925,86.77,86.73,7.46866925]
[1773235981155,3.08097021,86.769,86.73,7.46866925]
[1773235981350,3.08097021,86.769,86.74,7.46866925]
[1773235981653,0.1,86.78,86.75,7.46866925]
[1773235981860,0.1,86.78,86.76,7.46866925]
[1773235982066,0.1,86.78,86.75,7.46866925]
[1773235982253,11.62339248,86.78,86.75,7.46866925]
[1773235982453,11.62339248,86.78,86.747,3.2529679]
[1773235982654,0.1,86.78,86.76,7.46866925]
[1773235982870,0.1,86.78,86.751,3.2529679]
[1773235983779,0.1,86.78,86.76,7.46866925]
[1773235984276,0.1,86.78,86.752,11.52711176]
[1773235984472,0.1,86.78,86.76,7.46866925]
[1773235984985,3.08097021,86.809,86.77,7.46866925]
[1773235985154,7.46866925,86.8,86.764,3.2529679]
[1773235985358,3.08097021,86.808,86.764,3.2529679]
[1773235985758,7.46866925,86.79,86.752,3.2529679]
[1773235985957,7.46866925,86.77,86.731,3.2529679]
[1773235986162,3.08097021,86.784,86.75,7.46866925]
[1773235986163,7.46866925,86.78,86.75,7.46866925]
[1773235986363,3.08097021,86.784,86.75,7.46866925]
[1773235986554,11.51980831,86.807,86.77,7.46866925]
[1773235986858,46.05757496,86.848,86.73,7.46866925]
[1773235986859,7.46866925,86.83,86.791,3.2529679]
[1773235987054,7.46866925,86.83,86.79,7.46866925]
[1773235987276,7.46866925,86.82,86.782,3.2529679]
[1773235987573,7.46866925,86.84,86.8,7.46866925]
[1773235987760,11.51556328,86.839,86.801,3.2529679]
[1773235987956,40.30447148,86.839,86.802,11.52047187]
[1773235988165,7.46866925,86.83,86.79,7.46866925]
[1773235988481,40.30447148,86.839,86.8,7.46866925]
[1773235988979,3.08097021,86.872,86.83,7.46866925]
[1773235989154,11.61420114,86.85,86.821,3.2529679]
[1773235989365,7.46866925,86.88,86.841,3.2529679]
[1773235989672,3.08097021,86.879,86.83,3.2529679]
[1773235989871,3.08097021,86.877,86.84,7.46866925]
[1773235990073,7.46866925,86.86,86.821,11.51795072]
[1773235990279,7.46866925,86.85,86.81,7.46866925]
[1773235990480,3.08097021,86.859,86.811,3.2529679]
[1773235990781,3.08097021,86.849,86.811,3.2529679]
[1773235990984,7.46866925,86.83,86.799,3.2529679]
[1773235991271,3.08097021,86.857,86.821,3.2529679]
[1773235991851,7.46866925,86.86,86.82,7.46866925]
[1773235991852,3.08097021,86.854,86.82,7.46866925]
[1773235992070,7.46866925,86.83,86.791,3.2529679]
[1773235992374,3.08097021,86.839,86.801,3.2529679]
[1773235992576,7.46866925,86.85,86.81,7.46866925]
[1773235992757,3.08097021,86.875,86.84,7.46866925]
[1773235992957,3.08097021,86.869,86.831,3.2529679]
[1773235993267,11.51092386,86.874,86.84,7.46866925]
[1773235993780,7.46866925,86.87,86.832,11.51649161]
[1773235994091,7.46866925,86.87,86.833,3.2529679]
[1773235994458,40.28591488,86.879,86.841,3.2529679]
[1773235994656,11.51026139,86.879,86.841,3.2529679]
[1773235995057,3.08097021,86.878,86.841,3.2529679]
[1773235995253,7.46866925,86.87,86.829,3.2529679]
[1773235995454,3.08097021,86.878,86.841,3.2529679]
[1773235995778,40.28591488,86.879,86.841,3.2529679]
[1773235995951,3.08097021,86.89,86.823,3.2529679]
[1773235996278,12.07152842,86.895,86.861,3.2529679]
[1773235996485,12.07152842,86.895,86.87,7.46866925]
[1773235996676,1.02454827,86.895,86.869,2.0788053]
[1773235996981,3.08097021,86.909,86.87,7.46866925]
[1773235997185,40.26969187,86.914,86.861,2.82]
[1773235997186,3.08097021,86.899,86.861,2.82]
[1773235997366,7.46866925,86.9,86.861,2.82]
[1773235997558,3.08097021,86.901,86.87,7.46866925]
[1773235997753,3.08097021,86.919,86.88,7.46866925]
[1773235997972,40.27247203,86.908,86.87,7.46866925]
[1773235998172,3.08097021,86.946,86.9,7.46866925]
[1773235998375,3.08097021,86.946,86.891,1.0738833]
[1773235998672,0.1,86.96,86.91,7.46866925]
[1773235998673,3.34501741,86.934,86.91,7.46866925]
[1773235998879,14.84812699,86.934,86.9,7.46866925]
[1773235999171,0.1,86.96,86.921,1.08349835]
[1773235999371,11.59960833,86.96,86.94,7.46866925]
[1773235999576,3.08097021,86.995,86.95,8.4521676]
[1773235999755,3.3820891,87.007,86.98,7.46866925]
[1773235999956,3.3820891,87.019,86.981,11.49676366]
[1773236000158,3.3820891,87.009,86.95,1.00258272]
[1773236000374,3.3820891,87.009,86.97,7.46866925]
[1773236000576,3.3820891,86.989,86.939,1.00258272]
[1773236000882,3.28,87.06,86.915,2.82]
[1773236000883,3.3820891,86.959,86.92,7.46866925]
[1773236001174,3.3820891,86.959,86.915,2.82]
[1773236001382,3.3820891,86.959,86.93,7.46866925]
[1773236001676,3.3820891,86.959,86.92,7.46866925]
[1773236001875,3.3820891,86.949,86.915,2.82]
[1773236002067,3.3820891,86.949,86.92,7.46866925]
[1773236002263,3.3820891,86.948,86.915,2.82]
[1773236002581,3.3820891,86.939,86.915,2.82]
[1773236002783,7.46866925,86.93,86.888,11.50900941]
[1773236002961,3.3820891,86.948,86.92,7.46866925]
[1773236003156,3.3820891,86.948,86.91,7.46866925]
[1773236003385,3.3820891,86.939,86.9,7.46866925]
[1773236003678,11.50033783,86.954,86.92,7.46866925]
[1773236003881,3.3820891,86.953,86.904,1.03031078]
[1773236004084,3.3820891,86.949,86.91,7.46866925]
[1773236004463,3.3820891,86.939,86.88,1.0393787]
[1773236004672,3.3820891,86.939,86.877,28.77618689]
[1773236004673,3.3820891,86.939,86.9,7.46866925]
[1773236004985,3.3820891,86.949,86.92,7.46866925]
[1773236005171,3.3820891,86.958,86.92,7.46866925]
[1773236005480,7.46866925,86.95,86.92,7.46866925]
[1773236006384,11.50032666,86.955,86.921,11.50469966]
[1773236006679,3.3820891,86.954,86.92,7.46866925]
[1773236006985,3.3820891,86.94,86.91,7.46866925]
[1773236007182,7.46866925,86.95,86.92,7.46866925]
[1773236007481,7.46866925,86.95,86.906,1.0659591]
[1773236007683,11.49961317,86.96,86.93,7.41267207]
[1773236007869,11.49961317,86.96,86.92,7.41267207]
[1773236007870,3.3820891,86.959,86.92,7.41267207]
[1773236008074,11.5036409,86.929,86.886,12.58395618]
[1773236008277,11.5036409,86.929,86.89,7.41267207]
[1773236008466,7.41267207,86.93,86.89,7.41267207]
[1773236008666,7.41267207,86.93,86.856,46.05317147]
[1773236008667,3.3820891,86.919,86.861,1.07462212]
[1773236008880,3.3820891,86.909,86.87,7.41267207]
[1773236009080,3.3820891,86.899,86.861,11.51264664]
[1773236009275,3.3820891,86.889,86.858,2.82]
[1773236009679,7.41267207,86.88,86.858,2.82]
[1773236009879,178.30643395,86.929,86.81,1.08319218]
[1773236009880,3.3820891,86.869,86.81,1.08319218]
[1773236010215,3.3820891,86.869,86.83,7.41267207]
[1773236010387,14.89192236,86.883,86.85,7.41267207]
[1773236010584,7.41267207,86.88,86.84,1.09168728]
[1773236010784,7.41267207,86.88,86.84,8.50435935]
[1773236010978,3.3820891,86.869,86.83,7.41267207]
[1773236011185,3.3820891,86.882,86.85,7.41267207]
[1773236011386,7.41267207,86.88,86.84,7.41267207]
[1773236011582,3.3820891,86.894,86.85,7.41267207]
[1773236011771,11.50729044,86.902,86.87,7.41267207]
[1773236011967,7.41267207,86.9,86.87,7.41267207]
[1773236012181,14.88771535,86.914,86.88,7.41267207]
[1773236012384,14.88771535,86.914,86.871,40.28962484]
[1773236012385,3.3820891,86.909,86.871,11.51132138]
[1773236012580,3.3820891,86.909,86.88,7.41267207]
[1773236012792,7.41267207,86.93,86.89,7.41267207]
[1773236013296,7.41267207,86.93,86.886,1.10834862]
[1773236013297,3.3820891,86.929,86.872,1.11652249]
[1773236013482,3.3820891,86.919,86.872,1.11652249]
[1773236013680,3.3820891,86.934,86.9,7.41267207]
[1773236013896,3.3820891,86.929,86.89,7.41267207]
[1773236014093,3.3820891,86.927,86.884,11.509599]
[1773236014294,3.3820891,86.919,86.89,7.41267207]
[1773236014494,7.41267207,86.91,86.88,7.41267207]
[1773236014687,3.3820891,86.919,86.88,7.41267207]
[1773236015088,3.3820891,86.899,86.85,10.23267207]
[1773236015398,3.3820891,86.889,86.851,11.5139722]
[1773236015695,3.3820891,86.889,86.86,7.41267207]
[1773236015900,3.3820891,86.889,86.851,11.5139722]
[1773236016084,11.50906914,86.888,86.851,11.5139722]
[1773236016285,3.3820891,86.887,86.851,11.5139722]
[1773236016488,3.3820891,86.887,86.86,7.41267207]
[1773236016683,11.50673738,86.906,86.87,7.41267207]
[1773236016893,3.3820891,86.905,86.857,1.1406225]
[1773236017184,3.3820891,86.89,86.85,21.74669376]
[1773236017505,3.3820891,86.914,86.88,7.41267207]
[1773236017684,3.3820891,86.963,86.901,1.14843184]
[1773236017879,3.3820891,86.949,86.91,7.41267207]
[1773236018092,11.49834998,86.969,86.9,7.41267207]
[1773236018093,3.3820891,86.937,86.9,7.41267207]
[1773236018502,3.3820891,86.937,86.91,7.41267207]
[1773236018782,3.3820891,86.937,86.9,7.41267207]
[1773236018991,3.3820891,86.929,86.894,2.8]
[1773236019195,3.3820891,86.929,86.9,7.41267207]
[1773236019394,45.99597013,86.965,86.895,40.27849703]
[1773236019395,14.88384657,86.944,86.92,7.41267207]
[1773236019603,14.90801885,86.956,86.93,7.41267207]
[1773236019907,3.4078757,86.98,86.95,7.41267207]
[1773236020200,11.4971602,86.978,86.95,7.41267207]
[1773236020582,3.4078757,86.977,86.931,11.50337624]
[1773236020783,3.4078757,86.969,86.94,7.41267207]
[1773236021091,3.4078757,86.969,86.912,28.76470251]
[1773236021296,3.4078757,86.959,86.92,7.41267207]
[1773236021601,3.4078757,86.949,86.91,7.41267207]
[1773236021805,3.4078757,86.95,86.92,7.41267207]
[1773236021997,3.4078757,86.959,86.92,7.41267207]